[Event "Titled Tuesday Blitz September 14 2021"]
[White "Szpar, Milosz"]
[Black "Khusnutdinov, Rustam"]
[WhiteFideId "1184989"]
[BlackFideId "13701703"]
[WhiteElo "2282"]
[BlackElo "2571"]
[Result "0-1"]
[Round "04"]
[TimeControl "180+1"]
[Date "2021.09.15"]
[WhiteClock "0:00:23"]
[BlackClock "0:00:43"]

1. e4 {[%clk 0:03:00]}  e5 {[%clk 0:02:58]} 2. Nf3 {[%clk 0:02:59]}  Nf6 {[%clk 0:02:58]} 3. d4 {[%clk 0:02:55]}  Nxe4 {[%clk 0:02:57]} 4. Bd3 {[%clk 0:02:55]}  d5 {[%clk 0:02:57]} 5. Nxe5 {[%clk 0:02:54]}  Nd7 {[%clk 0:02:57]} 6. Nxd7 {[%clk 0:02:54]}  Bxd7 {[%clk 0:02:58]} 7. O-O {[%clk 0:02:54]}  Bd6 {[%clk 0:02:58]} 8. Qh5 {[%clk 0:02:55]}  Nf6 {[%clk 0:02:42]} 9. Re1+ {[%clk 0:02:53]}  Kf8 {[%clk 0:02:37]} 10. Qh4 {[%clk 0:02:50]}  Ng4 {[%clk 0:02:35]} 11. Qxd8+ {[%clk 0:02:38]}  Rxd8 {[%clk 0:02:36]} 12. h3 {[%clk 0:02:36]}  Nf6 {[%clk 0:02:31]} 13. Bg5 {[%clk 0:02:36]}  Be7 {[%clk 0:02:29]} 14. Nd2 {[%clk 0:02:34]}  c6 {[%clk 0:02:27]} 15. c3 {[%clk 0:02:31]}  Be6 {[%clk 0:02:24]} 16. Nf3 {[%clk 0:02:29]}  Ne8 {[%clk 0:02:22]} 17. Bxe7+ {[%clk 0:02:27]}  Kxe7 {[%clk 0:02:23]} 18. Ng5 {[%clk 0:02:27]}  Kf6 {[%clk 0:02:19]} 19. Nxe6 {[%clk 0:02:17]}  fxe6 {[%clk 0:02:20]} 20. Re3 {[%clk 0:02:16]}  Nd6 {[%clk 0:02:20]} 21. Rae1 {[%clk 0:02:13]}  Rde8 {[%clk 0:02:20]} 22. Rf3+ {[%clk 0:02:00]}  Ke7 {[%clk 0:02:20]} 23. Rg3 {[%clk 0:02:01]}  g6 {[%clk 0:02:20]} 24. Rge3 {[%clk 0:01:55]}  Kf6 {[%clk 0:02:19]} 25. g3 {[%clk 0:01:47]}  Re7 {[%clk 0:02:16]} 26. Kg2 {[%clk 0:01:46]}  Rhe8 {[%clk 0:02:15]} 27. f4 {[%clk 0:01:39]}  b5 {[%clk 0:02:14]} 28. g4 {[%clk 0:01:23]}  a6 {[%clk 0:02:06]} 29. Kg3 {[%clk 0:01:20]}  Nb7 {[%clk 0:02:04]} 30. h4 {[%clk 0:01:15]}  c5 {[%clk 0:02:04]} 31. h5 {[%clk 0:00:58]}  gxh5 {[%clk 0:02:00]} 32. g5+ {[%clk 0:00:58]}  Kf7 {[%clk 0:01:31]} 33. Kh4 {[%clk 0:00:51]}  cxd4 {[%clk 0:01:25]} 34. cxd4 {[%clk 0:00:51]}  Nd8 {[%clk 0:01:26]} 35. Kxh5 {[%clk 0:00:49]}  Nc6 {[%clk 0:01:25]} 36. Bxh7 {[%clk 0:00:47]}  Kg7 {[%clk 0:01:24]} 37. Bb1 {[%clk 0:00:26]}  Nxd4 {[%clk 0:01:23]} 38. Kg4 {[%clk 0:00:26]}  Rh8 {[%clk 0:01:13]} 39. Re5 {[%clk 0:00:23]}  Kf7 {[%clk 0:00:43]} 0-1


[Site "https://www.chess.com"]

[Event "Titled Tuesday Blitz September 14 2021"]
[White "Andreikin, Dmitry"]
[Black "Zarubitski, Viachaslau"]
[WhiteFideId "4158814"]
[BlackFideId "13509373"]
[WhiteElo "2736"]
[BlackElo "2315"]
[Result "1-0"]
[Round "05"]
[TimeControl "180+1"]
[Date "2021.09.15"]
[WhiteClock "0:00:45"]
[BlackClock "0:00:02"]

1. e4 {[%clk 0:03:00]}  e5 {[%clk 0:03:00]} 2. Nf3 {[%clk 0:03:00]}  Nf6 {[%clk 0:03:00]} 3. Nc3 {[%clk 0:03:00]}  Nc6 {[%clk 0:03:00]} 4. Bb5 {[%clk 0:02:59]}  Nd4 {[%clk 0:03:00]} 5. O-O {[%clk 0:02:59]}  c6 {[%clk 0:02:41]} 6. Bd3 {[%clk 0:02:58]}  Nxf3+ {[%clk 0:02:37]} 7. Qxf3 {[%clk 0:02:59]}  d6 {[%clk 0:02:38]} 8. Be2 {[%clk 0:02:58]}  Be7 {[%clk 0:02:38]} 9. Qg3 {[%clk 0:02:56]}  O-O {[%clk 0:02:36]} 10. d3 {[%clk 0:02:55]}  b5 {[%clk 0:02:24]} 11. Kh1 {[%clk 0:02:53]}  b4 {[%clk 0:02:17]} 12. Nd1 {[%clk 0:02:53]}  d5 {[%clk 0:01:29]} 13. f4 {[%clk 0:02:37]}  exf4 {[%clk 0:01:26]} 14. Bxf4 {[%clk 0:02:37]}  dxe4 {[%clk 0:01:25]} 15. Bc7 {[%clk 0:02:16]}  Qd7 {[%clk 0:01:03]} 16. Ne3 {[%clk 0:02:15]}  Nd5 {[%clk 0:00:49]} 17. Be5 {[%clk 0:02:03]}  f6 {[%clk 0:00:43]} 18. Nf5 {[%clk 0:02:02]}  Qxf5 {[%clk 0:00:27]} 19. Rxf5 {[%clk 0:02:01]}  Bxf5 {[%clk 0:00:28]} 20. Bd6 {[%clk 0:01:55]}  Rae8 {[%clk 0:00:19]} 21. Rf1 {[%clk 0:01:31]}  exd3 {[%clk 0:00:19]} 22. Bxd3 {[%clk 0:01:22]}  Bxd3 {[%clk 0:00:19]} 23. cxd3 {[%clk 0:01:23]}  Rf7 {[%clk 0:00:16]} 24. h3 {[%clk 0:01:20]}  Rd8 {[%clk 0:00:15]} 25. Bxe7 {[%clk 0:01:18]}  Rxe7 {[%clk 0:00:16]} 26. Re1 {[%clk 0:01:16]}  Rxe1+ {[%clk 0:00:14]} 27. Qxe1 {[%clk 0:01:17]}  Kf7 {[%clk 0:00:15]} 28. Qc1 {[%clk 0:01:16]}  Rc8 {[%clk 0:00:12]} 29. Qc5 {[%clk 0:01:16]}  Rc7 {[%clk 0:00:12]} 30. Qd6 {[%clk 0:01:16]}  g5 {[%clk 0:00:13]} 31. Kh2 {[%clk 0:01:07]}  h5 {[%clk 0:00:13]} 32. h4 {[%clk 0:01:07]}  Kg6 {[%clk 0:00:12]} 33. hxg5 {[%clk 0:01:06]}  Kxg5 {[%clk 0:00:13]} 34. Kg3 {[%clk 0:01:05]}  Rc8 {[%clk 0:00:11]} 35. Qd7 {[%clk 0:01:01]}  Rc7 {[%clk 0:00:12]} 36. Qd6 {[%clk 0:00:59]}  Kg6 {[%clk 0:00:12]} 37. Kh4 {[%clk 0:00:57]}  Rc8 {[%clk 0:00:05]} 38. Qg3+ {[%clk 0:00:57]}  Kf7 {[%clk 0:00:04]} 39. Qd6 {[%clk 0:00:56]}  Rc7 {[%clk 0:00:03]} 40. Kxh5 {[%clk 0:00:54]}  Re7 {[%clk 0:00:02]} 41. d4 {[%clk 0:00:45]} 1-0


[Site "https://www.chess.com"]

[Event "Titled Tuesday Blitz September 14 2021"]
[White "Chigaev, Maksim"]
[Black "Abdurakhmonov, Mukhammadali"]
[WhiteFideId "4108116"]
[BlackFideId "14207346"]
[WhiteElo "2610"]
[BlackElo "2241"]
[Result "0-1"]
[Round "05"]
[TimeControl "180+1"]
[Date "2021.09.15"]
[WhiteClock "0:00:22"]
[BlackClock "0:01:14"]

1. d4 {[%clk 0:03:00]}  Nf6 {[%clk 0:02:59]} 2. c4 {[%clk 0:03:00]}  g6 {[%clk 0:02:59]} 3. Nc3 {[%clk 0:03:00]}  c5 {[%clk 0:02:59]} 4. d5 {[%clk 0:02:53]}  Bg7 {[%clk 0:02:59]} 5. e4 {[%clk 0:02:53]}  d6 {[%clk 0:02:59]} 6. h3 {[%clk 0:02:53]}  O-O {[%clk 0:02:59]} 7. Nf3 {[%clk 0:02:53]}  e6 {[%clk 0:02:59]} 8. Bd3 {[%clk 0:02:52]}  Nbd7 {[%clk 0:02:58]} 9. dxe6 {[%clk 0:02:44]}  fxe6 {[%clk 0:02:59]} 10. O-O {[%clk 0:02:43]}  b6 {[%clk 0:02:59]} 11. e5 {[%clk 0:02:31]}  Nxe5 {[%clk 0:02:49]} 12. Nxe5 {[%clk 0:02:32]}  dxe5 {[%clk 0:02:50]} 13. Bg5 {[%clk 0:02:31]}  Bb7 {[%clk 0:02:37]} 14. Bxf6 {[%clk 0:02:27]}  Qxf6 {[%clk 0:02:32]} 15. Be4 {[%clk 0:02:27]}  Rad8 {[%clk 0:02:33]} 16. Qe2 {[%clk 0:02:20]}  Bxe4 {[%clk 0:02:24]} 17. Nxe4 {[%clk 0:02:16]}  Qf5 {[%clk 0:02:24]} 18. b3 {[%clk 0:02:09]}  Rd4 {[%clk 0:02:23]} 19. Rae1 {[%clk 0:02:07]}  Rfd8 {[%clk 0:02:21]} 20. Kh2 {[%clk 0:02:03]}  Bh6 {[%clk 0:02:15]} 21. f3 {[%clk 0:01:48]}  Bf4+ {[%clk 0:02:00]} 22. Kh1 {[%clk 0:01:48]}  Rd2 {[%clk 0:01:34]} 23. Nxd2 {[%clk 0:00:20]}  Rxd2 {[%clk 0:01:35]} 24. Qe4 {[%clk 0:00:20]}  Qg5 {[%clk 0:01:35]} 25. Re2 {[%clk 0:00:21]}  Qg3 {[%clk 0:01:35]} 26. Kg1 {[%clk 0:00:22]}  Qh2+ {[%clk 0:01:27]} 27. Kf2 {[%clk 0:00:22]}  Qg3+ {[%clk 0:01:21]} 28. Kg1 {[%clk 0:00:20]}  Qh2+ {[%clk 0:01:13]} 29. Kf2 {[%clk 0:00:20]}  Bg3+ {[%clk 0:01:13]} 30. Ke3 {[%clk 0:00:21]}  Rxe2+ {[%clk 0:01:14]} 31. Kxe2 {[%clk 0:00:22]}  Qxg2+ {[%clk 0:01:14]} 32. Ke3 {[%clk 0:00:22]}  Bf4+ {[%clk 0:01:14]} 0-1


[Site "https://www.chess.com"]

[Event "Titled Tuesday Blitz September 14 2021"]
[White "Csonka, Balazs"]
[Black "Kamsky, Gata"]
[WhiteFideId "742910"]
[BlackFideId "2000024"]
[WhiteElo "2404"]
[BlackElo "2603"]
[Result "1/2-1/2"]
[Round "05"]
[TimeControl "180+1"]
[Date "2021.09.15"]
[WhiteClock "0:00:04"]
[BlackClock "0:00:14"]

1. e4 {[%clk 0:03:00]}  e5 {[%clk 0:02:58]} 2. Nf3 {[%clk 0:02:59]}  Nc6 {[%clk 0:02:53]} 3. Bb5 {[%clk 0:02:58]}  a6 {[%clk 0:02:50]} 4. Ba4 {[%clk 0:02:58]}  Nf6 {[%clk 0:02:48]} 5. O-O {[%clk 0:02:57]}  Be7 {[%clk 0:02:45]} 6. d3 {[%clk 0:02:50]}  b5 {[%clk 0:02:41]} 7. Bb3 {[%clk 0:02:51]}  d6 {[%clk 0:02:41]} 8. a3 {[%clk 0:02:50]}  O-O {[%clk 0:02:40]} 9. Nc3 {[%clk 0:02:51]}  Be6 {[%clk 0:02:35]} 10. Nd5 {[%clk 0:02:48]}  Na5 {[%clk 0:02:29]} 11. Nxf6+ {[%clk 0:02:46]}  Bxf6 {[%clk 0:02:29]} 12. Bxe6 {[%clk 0:02:46]}  fxe6 {[%clk 0:02:29]} 13. b4 {[%clk 0:02:46]}  Nc6 {[%clk 0:02:22]} 14. c3 {[%clk 0:02:47]}  Kh8 {[%clk 0:02:06]} 15. Be3 {[%clk 0:02:43]}  Nb8 {[%clk 0:01:56]} 16. a4 {[%clk 0:02:07]}  Nd7 {[%clk 0:01:53]} 17. axb5 {[%clk 0:01:51]}  axb5 {[%clk 0:01:52]} 18. Qb3 {[%clk 0:01:48]}  Qe7 {[%clk 0:01:45]} 19. Ra5 {[%clk 0:01:36]}  Rab8 {[%clk 0:01:45]} 20. Ra7 {[%clk 0:01:31]}  Rfc8 {[%clk 0:01:42]} 21. Rfa1 {[%clk 0:01:27]}  Qe8 {[%clk 0:01:38]} 22. Qd1 {[%clk 0:01:11]}  h6 {[%clk 0:01:36]} 23. Nd2 {[%clk 0:01:06]}  Qg6 {[%clk 0:01:24]} 24. Nb3 {[%clk 0:01:03]}  Nf8 {[%clk 0:01:14]} 25. Na5 {[%clk 0:00:56]}  Qe8 {[%clk 0:01:13]} 26. Qg4 {[%clk 0:00:43]}  Ra8 {[%clk 0:01:11]} 27. Nb3 {[%clk 0:00:38]}  Rxa7 {[%clk 0:01:11]} 28. Rxa7 {[%clk 0:00:39]}  Qc6 {[%clk 0:01:05]} 29. Bd2 {[%clk 0:00:32]}  Ra8 {[%clk 0:00:57]} 30. Rxa8 {[%clk 0:00:28]}  Qxa8 {[%clk 0:00:57]} 31. Na5 {[%clk 0:00:28]}  c5 {[%clk 0:00:53]} 32. Qh5 {[%clk 0:00:16]}  Kg8 {[%clk 0:00:50]} 33. g3 {[%clk 0:00:15]}  d5 {[%clk 0:00:46]} 34. Qe2 {[%clk 0:00:12]}  c4 {[%clk 0:00:46]} 35. f3 {[%clk 0:00:06]}  Nd7 {[%clk 0:00:41]} 36. Kg2 {[%clk 0:00:06]}  Bd8 {[%clk 0:00:41]} 37. exd5 {[%clk 0:00:04]}  exd5 {[%clk 0:00:40]} 38. dxc4 {[%clk 0:00:04]}  bxc4 {[%clk 0:00:39]} 39. Nxc4 {[%clk 0:00:03]}  dxc4 {[%clk 0:00:37]} 40. Qxc4+ {[%clk 0:00:04]}  Kh8 {[%clk 0:00:37]} 41. Qe6 {[%clk 0:00:04]}  Nf6 {[%clk 0:00:30]} 42. Qxe5 {[%clk 0:00:04]}  Qa2 {[%clk 0:00:29]} 43. Qe2 {[%clk 0:00:03]}  Be7 {[%clk 0:00:21]} 44. Kf1 {[%clk 0:00:04]}  Bd6 {[%clk 0:00:20]} 45. Be1 {[%clk 0:00:02]}  Qb1 {[%clk 0:00:19]} 46. b5 {[%clk 0:00:03]}  Bc5 {[%clk 0:00:19]} 47. c4 {[%clk 0:00:03]}  Qb3 {[%clk 0:00:18]} 48. Kg2 {[%clk 0:00:02]}  Qb1 {[%clk 0:00:15]} 49. Bf2 {[%clk 0:00:03]}  Bxf2 {[%clk 0:00:15]} 50. Kxf2 {[%clk 0:00:04]}  Qb4 {[%clk 0:00:15]} 51. Kg2 {[%clk 0:00:04]}  Kg8 {[%clk 0:00:14]} 52. Qe6+ {[%clk 0:00:03]}  Kh8 {[%clk 0:00:13]} 53. Qc8+ {[%clk 0:00:03]}  Kh7 {[%clk 0:00:13]} 54. Qf5+ {[%clk 0:00:03]}  Kh8 {[%clk 0:00:14]} 55. Qc8+ {[%clk 0:00:04]}  Kh7 {[%clk 0:00:14]} 56. Qf5+ {[%clk 0:00:03]}  Kh8 {[%clk 0:00:14]} 57. Qc8+ {[%clk 0:00:04]} 1/2-1/2


[Site "https://www.chess.com"]

[Event "Titled Tuesday Blitz September 14 2021"]
[White "Grischuk, Alexander"]
[Black "Ibrahimli, Murad"]
[WhiteFideId "4126025"]
[BlackFideId "13410229"]
[WhiteElo "2757"]
[BlackElo "2109"]
[Result "1-0"]
[Round "05"]
[TimeControl "180+1"]
[Date "2021.09.15"]
[WhiteClock "0:00:46"]
[BlackClock "0:00:54"]

1. e4 {[%clk 0:03:00]}  c5 {[%clk 0:02:58]} 2. Nc3 {[%clk 0:02:59]}  Nc6 {[%clk 0:02:58]} 3. Nf3 {[%clk 0:02:58]}  e6 {[%clk 0:02:56]} 4. d4 {[%clk 0:02:57]}  cxd4 {[%clk 0:02:56]} 5. Nxd4 {[%clk 0:02:58]}  a6 {[%clk 0:02:57]} 6. Bf4 {[%clk 0:02:52]}  Nge7 {[%clk 0:02:46]} 7. Ndb5 {[%clk 0:02:29]}  axb5 {[%clk 0:02:19]} 8. Nxb5 {[%clk 0:02:30]}  d5 {[%clk 0:02:17]} 9. Bc7 {[%clk 0:02:24]}  Qd7 {[%clk 0:02:03]} 10. Nd6+ {[%clk 0:02:24]}  Qxd6 {[%clk 0:02:01]} 11. Bxd6 {[%clk 0:02:25]}  dxe4 {[%clk 0:02:00]} 12. Bb5 {[%clk 0:02:21]}  Bd7 {[%clk 0:01:59]} 13. O-O {[%clk 0:02:17]}  Nf5 {[%clk 0:01:51]} 14. Bxf8 {[%clk 0:02:15]}  Rxf8 {[%clk 0:01:52]} 15. c3 {[%clk 0:01:53]}  Ke7 {[%clk 0:01:49]} 16. Qg4 {[%clk 0:01:51]}  Ne5 {[%clk 0:01:41]} 17. Qe2 {[%clk 0:01:46]}  Bxb5 {[%clk 0:01:31]} 18. Qxb5 {[%clk 0:01:47]}  Kf6 {[%clk 0:01:32]} 19. Rae1 {[%clk 0:01:36]}  Rxa2 {[%clk 0:01:30]} 20. Rxe4 {[%clk 0:01:34]}  Ng6 {[%clk 0:01:30]} 21. Ra4 {[%clk 0:01:28]}  Rxa4 {[%clk 0:01:27]} 22. Qxa4 {[%clk 0:01:29]}  Rd8 {[%clk 0:01:25]} 23. Rd1 {[%clk 0:01:29]}  b5 {[%clk 0:01:22]} 24. Qb3 {[%clk 0:01:28]}  Rb8 {[%clk 0:01:19]} 25. c4 {[%clk 0:01:23]}  b4 {[%clk 0:01:19]} 26. c5 {[%clk 0:01:20]}  Nge7 {[%clk 0:01:16]} 27. Qf3 {[%clk 0:01:17]}  h5 {[%clk 0:01:09]} 28. Qxh5 {[%clk 0:01:13]}  Rc8 {[%clk 0:01:07]} 29. Qf3 {[%clk 0:01:11]}  Ng6 {[%clk 0:00:58]} 30. g4 {[%clk 0:00:49]}  Ne5 {[%clk 0:00:58]} 31. Qb7 {[%clk 0:00:49]}  Rxc5 {[%clk 0:00:54]} 32. gxf5 {[%clk 0:00:49]}  Kxf5 {[%clk 0:00:55]} 33. Qxb4 {[%clk 0:00:47]}  Rc4 {[%clk 0:00:54]} 34. Qb3 {[%clk 0:00:46]}  Rg4+ {[%clk 0:00:54]} 35. Kf1 {[%clk 0:00:46]} 1-0


[Site "https://www.chess.com"]

[Event "Titled Tuesday Blitz September 14 2021"]
[White "Hansen, Eric"]
[Black "Bryakin, Mikhail"]
[WhiteFideId "2606771"]
[BlackFideId "4165314"]
[WhiteElo "2568"]
[BlackElo "2313"]
[Result "1-0"]
[Round "05"]
[TimeControl "180+1"]
[Date "2021.09.15"]
[WhiteClock "0:00:29"]
[BlackClock "0:01:10"]

1. Nf3 {[%clk 0:02:58]}  d5 {[%clk 0:02:51]} 2. g3 {[%clk 0:02:57]}  e6 {[%clk 0:02:50]} 3. Bg2 {[%clk 0:02:57]}  Nf6 {[%clk 0:02:48]} 4. O-O {[%clk 0:02:58]}  Be7 {[%clk 0:02:48]} 5. d3 {[%clk 0:02:54]}  O-O {[%clk 0:02:48]} 6. Nbd2 {[%clk 0:02:53]}  b6 {[%clk 0:02:47]} 7. e4 {[%clk 0:02:50]}  Bb7 {[%clk 0:02:47]} 8. e5 {[%clk 0:02:50]}  Nfd7 {[%clk 0:02:47]} 9. Re1 {[%clk 0:02:48]}  c5 {[%clk 0:02:47]} 10. Nf1 {[%clk 0:02:48]}  d4 {[%clk 0:02:47]} 11. h4 {[%clk 0:02:45]}  Qc8 {[%clk 0:02:46]} 12. h5 {[%clk 0:02:43]}  Bd5 {[%clk 0:02:44]} 13. c4 {[%clk 0:02:07]}  dxc3 {[%clk 0:02:36]} 14. bxc3 {[%clk 0:02:07]}  Qb7 {[%clk 0:02:36]} 15. a4 {[%clk 0:01:53]}  Na6 {[%clk 0:02:28]} 16. Ne3 {[%clk 0:01:50]}  Bc6 {[%clk 0:02:23]} 17. Nc4 {[%clk 0:01:50]}  Nc7 {[%clk 0:02:14]} 18. h6 {[%clk 0:01:44]}  g6 {[%clk 0:02:13]} 19. Nd6 {[%clk 0:01:44]}  Bxd6 {[%clk 0:02:12]} 20. exd6 {[%clk 0:01:44]}  Nd5 {[%clk 0:02:12]} 21. Bb2 {[%clk 0:01:34]}  Rfe8 {[%clk 0:02:11]} 22. Qd2 {[%clk 0:01:12]}  f6 {[%clk 0:02:01]} 23. a5 {[%clk 0:01:08]}  b5 {[%clk 0:01:55]} 24. a6 {[%clk 0:01:00]}  Qb6 {[%clk 0:01:54]} 25. Nh2 {[%clk 0:00:54]}  f5 {[%clk 0:01:51]} 26. c4 {[%clk 0:00:49]}  N5f6 {[%clk 0:01:43]} 27. Bxf6 {[%clk 0:00:46]}  Nxf6 {[%clk 0:01:41]} 28. Qb2 {[%clk 0:00:45]}  Kf7 {[%clk 0:01:36]} 29. cxb5 {[%clk 0:00:33]}  Bxg2 {[%clk 0:01:21]} 30. Kxg2 {[%clk 0:00:33]}  Qxd6 {[%clk 0:01:19]} 31. Nf3 {[%clk 0:00:34]}  Rab8 {[%clk 0:01:10]} 32. Ng5+ {[%clk 0:00:29]} 1-0


[Site "https://www.chess.com"]

[Event "Titled Tuesday Blitz September 14 2021"]
[White "Kezin, Roman"]
[Black "Bluebaum, Matthias"]
[WhiteFideId "24124621"]
[BlackFideId "24651516"]
[WhiteElo "2570"]
[BlackElo "2681"]
[Result "0-1"]
[Round "05"]
[TimeControl "180+1"]
[Date "2021.09.15"]
[WhiteClock "0:00:01"]
[BlackClock "0:00:09"]

1. d4 {[%clk 0:03:00]}  d5 {[%clk 0:02:59]} 2. c4 {[%clk 0:03:00]}  e6 {[%clk 0:02:59]} 3. Nf3 {[%clk 0:03:00]}  Nf6 {[%clk 0:02:59]} 4. g3 {[%clk 0:03:01]}  Be7 {[%clk 0:02:57]} 5. Bg2 {[%clk 0:03:01]}  O-O {[%clk 0:02:58]} 6. O-O {[%clk 0:03:01]}  dxc4 {[%clk 0:02:59]} 7. Qc2 {[%clk 0:03:02]}  c6 {[%clk 0:02:59]} 8. a4 {[%clk 0:02:51]}  b6 {[%clk 0:02:48]} 9. Nbd2 {[%clk 0:02:45]}  Bb7 {[%clk 0:02:38]} 10. Nxc4 {[%clk 0:02:44]}  c5 {[%clk 0:02:38]} 11. Rd1 {[%clk 0:02:42]}  Qc8 {[%clk 0:02:29]} 12. Bf4 {[%clk 0:02:35]}  cxd4 {[%clk 0:02:18]} 13. Rac1 {[%clk 0:02:34]}  Rd8 {[%clk 0:01:56]} 14. Rxd4 {[%clk 0:02:07]}  Rxd4 {[%clk 0:01:55]} 15. Nxd4 {[%clk 0:02:08]}  Bxg2 {[%clk 0:01:55]} 16. Kxg2 {[%clk 0:02:09]}  Qb7+ {[%clk 0:01:54]} 17. Kg1 {[%clk 0:01:31]}  Nbd7 {[%clk 0:01:41]} 18. Nd6 {[%clk 0:01:26]}  Qd5 {[%clk 0:01:15]} 19. Qc6 {[%clk 0:01:19]}  e5 {[%clk 0:01:12]} 20. N6f5 {[%clk 0:00:02]}  Bf8 {[%clk 0:01:02]} 21. e4 {[%clk 0:00:02]}  Qxc6 {[%clk 0:00:48]} 22. Nxc6 {[%clk 0:00:03]}  exf4 {[%clk 0:00:49]} 23. e5 {[%clk 0:00:04]}  Ne4 {[%clk 0:00:35]} 24. gxf4 {[%clk 0:00:04]}  Ndc5 {[%clk 0:00:34]} 25. Rc4 {[%clk 0:00:01]}  g6 {[%clk 0:00:32]} 26. Nfd4 {[%clk 0:00:01]}  a6 {[%clk 0:00:20]} 27. b4 {[%clk 0:00:01]}  Nd3 {[%clk 0:00:20]} 28. f3 {[%clk 0:00:01]}  Nd2 {[%clk 0:00:20]} 29. Rc3 {[%clk 0:00:02]}  Nxb4 {[%clk 0:00:20]} 30. Kg2 {[%clk 0:00:01]}  Nd5 {[%clk 0:00:20]} 31. Rb3 {[%clk 0:00:02]}  Nxf4+ {[%clk 0:00:21]} 32. Kg3 {[%clk 0:00:02]}  Nh5+ {[%clk 0:00:21]} 33. Kf2 {[%clk 0:00:02]}  Nc4 {[%clk 0:00:22]} 34. Rc3 {[%clk 0:00:02]}  b5 {[%clk 0:00:22]} 35. axb5 {[%clk 0:00:03]}  axb5 {[%clk 0:00:23]} 36. Nxb5 {[%clk 0:00:03]}  Ra2+ {[%clk 0:00:24]} 37. Kf1 {[%clk 0:00:04]}  Nd2+ {[%clk 0:00:24]} 38. Kg1 {[%clk 0:00:03]}  Nf4 {[%clk 0:00:24]} 39. Nbd4 {[%clk 0:00:02]}  Kg7 {[%clk 0:00:23]} 40. e6 {[%clk 0:00:02]}  fxe6 {[%clk 0:00:23]} 41. Nd8 {[%clk 0:00:02]}  Kf6 {[%clk 0:00:23]} 42. Rc7 {[%clk 0:00:03]}  Bd6 {[%clk 0:00:19]} 43. Rf7+ {[%clk 0:00:03]}  Kg5 {[%clk 0:00:19]} 44. N8xe6+ {[%clk 0:00:02]}  Nxe6 {[%clk 0:00:20]} 45. Nxe6+ {[%clk 0:00:02]}  Kh6 {[%clk 0:00:20]} 46. h4 {[%clk 0:00:02]}  Ra6 {[%clk 0:00:09]} 47. Ng5 {[%clk 0:00:01]}  Ra7 {[%clk 0:00:09]} 0-1


[Site "https://www.chess.com"]

[Event "Titled Tuesday Blitz September 14 2021"]
[White "Khusnutdinov, Rustam"]
[Black "Mitrabha, Guha"]
[WhiteFideId "13701703"]
[BlackFideId "5057000"]
[WhiteElo "2571"]
[BlackElo "2334"]
[Result "1-0"]
[Round "05"]
[TimeControl "180+1"]
[Date "2021.09.15"]
[WhiteClock "0:00:48"]
[BlackClock "0:01:24"]

1. e4 {[%clk 0:02:55]}  c6 {[%clk 0:03:00]} 2. d4 {[%clk 0:02:53]}  d5 {[%clk 0:02:59]} 3. exd5 {[%clk 0:02:54]}  cxd5 {[%clk 0:02:58]} 4. Bd3 {[%clk 0:02:55]}  Nc6 {[%clk 0:02:58]} 5. c3 {[%clk 0:02:56]}  Nf6 {[%clk 0:02:56]} 6. Ne2 {[%clk 0:02:56]}  Bg4 {[%clk 0:02:53]} 7. O-O {[%clk 0:02:54]}  e6 {[%clk 0:02:48]} 8. Qe1 {[%clk 0:02:49]}  Bd6 {[%clk 0:02:45]} 9. f3 {[%clk 0:02:44]}  Bh5 {[%clk 0:02:44]} 10. Qh4 {[%clk 0:02:38]}  O-O {[%clk 0:02:39]} 11. Bg5 {[%clk 0:02:35]}  Bg6 {[%clk 0:02:39]} 12. Bxg6 {[%clk 0:02:36]}  hxg6 {[%clk 0:02:40]} 13. Nd2 {[%clk 0:02:36]}  Be7 {[%clk 0:02:39]} 14. Nf4 {[%clk 0:02:30]}  Nh7 {[%clk 0:02:34]} 15. Bxe7 {[%clk 0:02:26]}  Qxe7 {[%clk 0:02:35]} 16. Qf2 {[%clk 0:02:24]}  b5 {[%clk 0:02:32]} 17. a3 {[%clk 0:02:22]}  a5 {[%clk 0:02:32]} 18. b4 {[%clk 0:02:23]}  Nf6 {[%clk 0:02:31]} 19. Rfe1 {[%clk 0:02:22]}  Qc7 {[%clk 0:02:30]} 20. Nd3 {[%clk 0:02:22]}  Ne7 {[%clk 0:02:29]} 21. Nc5 {[%clk 0:02:22]}  Nf5 {[%clk 0:02:29]} 22. Ndb3 {[%clk 0:02:18]}  a4 {[%clk 0:02:24]} 23. Nc1 {[%clk 0:02:17]}  Nd6 {[%clk 0:02:24]} 24. N1d3 {[%clk 0:02:17]}  Nc4 {[%clk 0:02:25]} 25. Ne5 {[%clk 0:02:17]}  Nxe5 {[%clk 0:02:23]} 26. Rxe5 {[%clk 0:02:14]}  Nd7 {[%clk 0:02:23]} 27. Re3 {[%clk 0:02:11]}  Nb6 {[%clk 0:02:23]} 28. f4 {[%clk 0:02:11]}  Nc4 {[%clk 0:02:17]} 29. Rh3 {[%clk 0:02:11]}  Qe7 {[%clk 0:02:17]} 30. g4 {[%clk 0:01:55]}  f5 {[%clk 0:02:12]} 31. g5 {[%clk 0:01:55]}  Nd6 {[%clk 0:02:09]} 32. Qh4 {[%clk 0:01:52]}  Kf7 {[%clk 0:02:09]} 33. Nd3 {[%clk 0:01:49]}  Nc4 {[%clk 0:02:06]} 34. Qh7 {[%clk 0:01:41]}  Rh8 {[%clk 0:01:54]} 35. Qxh8 {[%clk 0:01:40]}  Rxh8 {[%clk 0:01:55]} 36. Rxh8 {[%clk 0:01:40]}  Qc7 {[%clk 0:01:56]} 37. Re1 {[%clk 0:01:18]}  Ke7 {[%clk 0:01:43]} 38. Rh7 {[%clk 0:00:54]}  Kf7 {[%clk 0:01:41]} 39. Nc5 {[%clk 0:00:53]}  Kg8 {[%clk 0:01:30]} 40. Nxe6 {[%clk 0:00:52]}  Qc6 {[%clk 0:01:24]} 41. Rxg7+ {[%clk 0:00:50]}  Kh8 {[%clk 0:01:24]} 42. Rxg6 {[%clk 0:00:49]}  Nd2 {[%clk 0:01:24]} 43. Re3 {[%clk 0:00:48]} 1-0


[Site "https://www.chess.com"]